Workbook

Sheet MAIN
D9: Entry | G9: Salary | J9: Download | M9: Settings

Sheet data
A1: Col1_1 | B1: Col1_2 | C1: Col1_3 | D1: Col1_4 | E1: Col1_5 | F1: Col1_6 | G1: Col1_7 | H1: Col1_8 | I1: Col1_9 | J1: Col1_10 | K1: Col1_11 | L1: Col1_12 | M1: Col1_13 | N1: Col1_14 | O1: Col1_15 | P1: Col1_16 | Q1: Col1_17 | R1: Col1_18 | S1: Col1_19 | T1: Col1_20 | U1: Col1_21 | V1: Col1_22 | W1: Col1_23 | X1: Col1_24 | Y1: Col1_25 | Z1: Col1_26 | AA1: Col1_27 | AB1: Col1_28 | AC1: Col1_29 | AD1: Col1_30 | AE1: Col1_31 | AF1: Col1_32 | AG1: Col1_33 | AH1: Col1_34 | AI1: Col1_35 | AJ1: Col1_36 | AK1: Col1_37 | AL1: Col1_38 | AM1: Col1_39 | AN1: Col1_40 | AO1: Col1_41 | AP1: Col1_42 | AQ1: Col1_43 | AR1: Col1_44 | AS1: Col1_45 | AT1: Col1_46 | AU1: Col1_47 | AV1: Col1_48 | AW1: Col1_49 | AX1: Col1_50 | AY1: Col1_51 | AZ1: Col1_52 | BA1: Col1_53 | BB1: Col1_54 | BC1: Col1_55 | BD1: Col1_56 | BE1: Col1_57 | BF1: Col1_58 | BG1: Col1_59 | BH1: Col1_60 | BI1: Col1_61 | BJ1: Col1_62 | BK1: Col1_63 | BL1: Col1_64 | BM1: Col1_65 | BN1: Col1_66 | BO1: Col1_67 | BP1: Col1_68 | BQ1: Col1_69 | BR1: Col1_70 | BS1: Col1_71 | BT1: Col1_72 | BU1: Col1_73 | BV1: Col1_74 | BW1: Col1_75 | BX1: Col1_76 | BY1: Col1_77 | BZ1: Col1_78 | CA1: Col1_79 | CB1: Col1_80 | CC1: Col1_81 | CD1: Col1_82 | CE1: Col1_83 | CF1: Col1_84 | CG1: Col1_85 | CH1: Col1_86 | CI1: Col1_87 | CJ1: Col1_88 | CK1: Col1_89 | CL1: Col1_90 | CM1: Col1_91 | CN1: Col1_92 | CO1: Col1_93 | CP1: Col1_94 | CQ1: Col1_95 | CR1: Col1_96 | CS1: Col1_97 | CT1: Col1_98 | CU1: Col1_99 | CV1: Col1_100 | CW1: Col1_101 | CX1: Col1_102 | CY1: Col1_103 | CZ1: Col1_104 | DA1: Col1_105 | DB1: Col1_106 | DC1: Col1_107 | DD1: Col1_108 | DE1: Col1_109 | DF1: Col1_110 | DG1: Col1_111 | DH1: Col1_112 | DI1: Col1_113 | DJ1: Col1_114 | DK1: Col1_115 | DL1: Col1_116 | DM1: Col1_117 | DN1: Col1_118 | DO1: Col1_119 | DP1: Col1_120 | DQ1: Col1_121 | DR1: Col1_122 | DS1: Col1_123 | DT1: Col1_124 | DU1: Col1_125 | DV1: Col1_126 | DW1: Col1_127 | DX1: Col1_128 | DY1: Col1_129 | DZ1: Col1_130 | EA1: Col1_131 | EB1: Col1_132 | EC1: Col1_133 | ED1: Col1_134 | EE1: Col1_135 | EF1: Col1_136 | EG1: Col1_137 | EH1: Col1_138 | EI1: Col1_139 | EJ1: Col1_140 | EK1: Col1_141 | EL1: Col1_142 | EM1: Col1_143 | EN1: Col1_144 | EO1: Col1_145 | EP1: Col1_146 | EQ1: Col1_147 | ER1: Col1_148 | ES1: Col1_149 | ET1: Col1_150 | EU1: Col1_151 | EV1: Col1_152 | EW1: Col1_153 | EX1: Col1_154 | EY1: Col1_155 | EZ1: Col1_156 | FA1: Col1_157 | FB1: Col1_158 | FC1: Col1_159 | FD1: Col1_160 | FE1: Col1_161 | FF1: Col1_162 | FG1: Col1_163 | FH1: Col1_164 | FI1: Col1_165 | FJ1: Col1_166 | FK1: Col1_167 | FL1: Col1_168 | FM1: Col1_169 | FN1: Col1_170 | FO1: Col1_171 | FP1: Col1_172 | FQ1: Col1_173 | FR1: Col1_174 | FS1: Col1_175 | FT1: Col1_176 | FU1: Col1_177 | FV1: Col1_178 | FW1: Col1_179 | FX1: Col1_180 | FY1: Col1_181 | FZ1: Col1_182 | GA1: Col1_183 | GB1: Col1_184 | GC1: Col1_185 | GD1: Col1_186 | GE1: Col1_187 | GF1: Col1_188 | GG1: Col1_189 | GH1: Col1_190 | GI1: Col1_191 | GJ1: Col1_192 | GK1: Col1_193 | GL1: Col1_194 | GM1: Col1_195 | GN1: Col1_196 | GO1: Col1_197 | GP1: Col1_198 | GQ1: Col1_199 | GR1: Col1_200 | GS1: Col1_201 | GT1: Col1_202 | GU1: Col1_203 | GV1: Col1_204 | GW1: Col1_205 | GX1: Col1_206 | GY1: Col1_207 | GZ1: Col1_208 | HA1: Col1_209 | HB1: Col1_210 | HC1: Col1_211 | HD1: Col1_212 | HE1: Col1_213 | HF1: Col1_214 | HG1: Col1_215 | HH1: Col1_216 | HI1: Col1_217 | HJ1: Col1_218 | HK1: Col1_219 | HL1: Col1_220 | HM1: Col1_221 | HN1: Col1_222 | HO1: Col1_223 | HP1: Col1_224 | HQ1: Col1_225 | HR1: Col1_226 | HS1: Col1_227 | HT1: Col1_228 | HU1: Col1_229 | HV1: Col1_230 | HW1: Col1_231 | HX1: Col1_232 | HY1: Col1_233 | HZ1: Col1_234 | IA1: Col1_235 | IB1: Col1_236 | IC1: Col1_237 | ID1: Col1_238 | IE1: Col1_239 | IF1: Col1_240 | IG1: Col1_241 | IH1: Col1_242 | II1: Col1_243 | IJ1: Col1_244 | IK1: Col1_245 | IL1: Col1_246 | IM1: Col1_247 | IN1: Col1_248 | IO1: Col1_249 | IP1: Col1_250 | IQ1: Col1_251 | IR1: Col1_252 | IS1: Col1_253 | IT1: Col1_254 | IU1: Col1_255 | IV1: Col1_256 | IW1: Col1_257 | IX1: Col1_258 | IY1: Col1_259 | IZ1: Col1_260 | JA1: Col1_261 | JB1: Col1_262 | JC1: Col1_263 | JD1: Col1_264 | JE1: Col1_265 | JF1: Col1_266 | JG1: Col1_267 | JH1: Col1_268 | JI1: Col1_269 | JJ1: Col1_270 | JK1: Col1_271 | JL1: Col1_272 | JM1: Col1_273 | JN1: Col1_274 | JO1: Col1_275 | JP1: Col1_276 | JQ1: Col1_277 | JR1: Col1_278 | JS1: Col1_279 | JT1: Col1_280 | JU1: Col1_281 | JV1: Col1_282 | JW1: Col1_283 | JX1: Col1_284 | JY1: Col1_285 | JZ1: Col1_286 | KA1: Col1_287 | KB1: Col1_288 | KC1: Col1_289 | KD1: Col1_290 | KE1: Col1_291 | KF1: Col1_292 | KG1: Col1_293 | KH1: Col1_294 | KI1: Col1_295 | KJ1: Col1_296 | KK1: Col1_297 | KL1: Col1_298 | KM1: Col1_299 | KN1: Col1_300 | KO1: Col1_301 | KP1: Col1_302 | KQ1: Col1_303 | KR1: Col1_304 | KS1: Col1_305 | KT1: Col1_306 | KU1: Col1_307 | KV1: Col1_308 | KW1: Col1_309 | KX1: Col1_310 | KY1: Col1_311 | KZ1: Col1_312 | LA1: Col1_313 | LB1: Col1_314 | LC1: Col1_315 | LD1: Col1_316 | LE1: Col1_317 | LF1: Col1_318 | LG1: Col1_319 | LH1: Col1_320 | LI1: Col1_321 | LJ1: Col1_322 | LK1: Col1_323 | LL1: Col1_324 | LM1: Col1_325 | LN1: Col1_326 | LO1: Col1_327 | LP1: Col1_328 | LQ1: Col1_329 | LR1: Col1_330 | LS1: Col1_331 | LT1: Col1_332 | LU1: Col1_333 | LV1: Col1_334 | LW1: Col1_335 | LX1: Col1_336 | LY1: Col1_337 | LZ1: Col1_338 | MA1: Col1_339 | MB1: Col1_340 | MC1: Col1_341 | MD1: Col1_342 | ME1: Col1_343 | MF1: Col1_344 | MG1: Col1_345 | MH1: Col1_346 | MI1: Col1_347 | MJ1: Col1_348 | MK1: Col1_349 | ML1: Col1_350 | MM1: Col1_351 | MN1: Col1_352 | MO1: Col1_353 | MP1: Col1_354 | MQ1: Col1_355 | MR1: Col1_356 | MS1: Col1_357 | MT1: Col1_358 | MU1: Col1_359 | MV1: Col1_360 | MW1: Col1_361 | MX1: Col1_362 | MY1: Col1_363 | MZ1: Col1_364 | NA1: Col1_365 | NB1: Col1_366 | NC1: Col1_367 | ND1: Col1_368 | NE1: Col1_369 | NF1: Col1_370 | NG1: Col1_371 | NH1: Col1_372 | NI1: Col1_373 | NJ1: Col1_374 | NK1: Col1_375 | NL1: Col1_376 | NM1: Col1_377 | NN1: Col1_378 | NO1: Col1_379 | NP1: Col1_380 | NQ1: Col1_381 | NR1: Col1_382 | NS1: Col1_383 | NT1: Col1_384 | NU1: Col1_385 | NV1: Col1_386 | NW1: Col1_387 | NX1: Col1_388 | NY1: Col1_389 | NZ1: Col1_390 | OA1: Col1_391 | OB1: Col1_392 | OC1: Col1_393 | OD1: Col1_394 | OE1: Col1_395 | OF1: Col1_396 | OG1: Col1_397 | OH1: Col1_398 | OI1: Col1_399 | OJ1: Col1_400 | OK1: Col1_401 | OL1: Col1_402 | OM1: Col1_403 | ON1: Col1_404 | OO1: Col1_405 | OP1: Col1_406 | OQ1: Col1_407 | OR1: Col1_408 | OS1: Col1_409 | OT1: Col1_410 | OU1: Col1_411 | OV1: Col1_412 | OW1: Col1_413 | OX1: Col1_414 | OY1: Col1_415 | OZ1: Col1_416 | PA1: Col1_417 | PB1: Col1_418 | PC1: Col1_419 | PD1: Col1_420 | PE1: Col1_421 | PF1: Col1_422 | PG1: Col1_423 | PH1: Col1_424 | PI1: Col1_425 | PJ1: Col1_426 | PK1: Col1_427 | PL1: Col1_428 | PM1: Col1_429 | PN1: Col1_430 | PO1: Col1_431 | PP1: Col1_432 | PQ1: Col1_433 | PR1: Col1_434 | PS1: Col1_435 | PT1: Col1_436 | PU1: Col1_437 | PV1: Col1_438 | PW1: Col1_439 | PX1: Col1_440 | PY1: Col1_441 | PZ1: Col1_442 | QA1: Col1_443 | QB1: Col1_444 | QC1: Col1_445 | QD1: Col1_446 | QE1: Col1_447 | QF1: Col1_448 | QG1: Col1_449 | QH1: Col1_450 | QI1: Col1_451 | QJ1: Col1_452 | QK1: Col1_453 | QL1: Col1_454 | QM1: Col1_455 | QN1: Col1_456 | QO1: Col1_457 | QP1: Col1_458 | QQ1: Col1_459 | QR1: Col1_460 | QS1: Col1_461 | QT1: Col1_462 | QU1: Col1_463 | QV1: Col1_464 | QW1: Col1_465 | QX1: Col1_466 | QY1: Col1_467 | QZ1: Col1_468 | RA1: Col1_469 | RB1: Col1_470 | RC1: Col1_471 | RD1: Col1_472 | RE1: Col1_473 | RF1: Col1_474 | RG1: Col1_475 | RH1: Col1_476 | RI1: Col1_477 | RJ1: Col1_478 | RK1: Col1_479 | RL1: Col1_480 | RM1: Col1_481 | RN1: Col1_482 | RO1: Col1_483 | RP1: Col1_484 | RQ1: Col1_485 | RR1: Col1_486 | RS1: Col1_487 | RT1: Col1_488 | RU1: Col1_489 | RV1: Col1_490 | RW1: Col1_491 | RX1: Col1_492 | RY1: Col1_493 | RZ1: Col1_494
A2: 1 | B2: Pramod Kumar Saini | C2: Teacher | D2: QWERTY1234U | E2: GSSS Malutana | F2: 50800 | G2: 7 | H2: 10 | I2: 12 | J2: 700 | K2: 100000 | M2: 30000 | N2: 50000 | S2: 25000 | X2: 10000 | AA2: 50800 | AB2: 50800 | AC2: 50800 | AD2: 50800 | AE2: 52300 | AF2: 52300 | AG2: 52300 | AH2: 52300 | AI2: 52300 | AJ2: 52300 | AK2: 52300 | AL2: 52300 | AP2: 26150 | AV2: 0 | AW2: 0 | AX2: 0 | AY2: 0 | AZ2: 0 | BA2: 0 | BB2: 0 | BC2: 0 | BD2: 0 | BE2: 0 | BF2: 0 | BP2: 0 | BQ2: 0 | BR2: 0 | BS2: 0 | BT2: 0 | BU2: 0 | BV2: 0 | BW2: 0 | BX2: 0 | BY2: 0 | BZ2: 0 | CI2: 26924 | CJ2: 27940 | CK2: 27940 | CL2: 27940 | CM2: 28765 | CN2: 28765 | CO2: 28765 | CP2: 28765 | CQ2: 28765 | CR2: 28765 | CS2: 28765 | CT2: 28765 | CU2: 3048 | CV2: 0 | CX2: 14383 | DC2: 5080 | DD2: 5080 | DE2: 5080 | DF2: 5080 | DG2: 5230 | DH2: 5230 | DI2: 5230 | DJ2: 5230 | DK2: 5230 | DL2: 5230 | DM2: 5230 | DN2: 5230 | DQ2: 0 | DX2: 0 | DY2: 0 | DZ2: 0 | EA2: 0 | EB2: 0 | EC2: 0 | ED2: 0 | EE2: 0 | EF2: 0 | EG2: 0 | EH2: 0 | ER2: 0 | ES2: 0 | ET2: 0 | EU2: 0 | EV2: 0 | EW2: 0 | EX2: 0 | EY2: 0 | EZ2: 0 | FA2: 0 | FB2: 0 | GA2: 6774 | GF2: 0 | GG2: 0 | GH2: 0 | GI2: 0 | GJ2: 0 | GK2: 0 | GL2: 0 | GM2: 0 | GN2: 0 | GO2: 0 | GP2: 0 | GZ2: 0 | HA2: 0 | HB2: 0 | HC2: 0 | HD2: 0 | HE2: 0 | HF2: 0 | HG2: 0 | HH2: 0 | HI2: 0 | HJ2: 0 | HS2: 2850 | HT2: 2850 | HU2: 2850 | HV2: 2850 | HW2: 3575 | HX2: 3575 | HY2: 3575 | HZ2: 3575 | IA2: 3575 | IB2: 3575 | IC2: 3575 | ID2: 3575 | IE2: 3048 | IF2: 0 | II2: 1694 | IN2: 0 | IO2: 0 | IP2: 0 | IQ2: 0 | IR2: 0 | IS2: 0 | IT2: 0 | IU2: 0 | IV2: 0 | IW2: 0 | IX2: 0 | JG2: 3000 | JH2: 3000 | JI2: 3000 | JJ2: 3000 | JK2: 3000 | JL2: 3000 | JM2: 3000 | JN2: 3000 | JO2: 3000 | JP2: 3000 | JQ2: 3000 | JR2: 3000 | KB2: 0 | KC2: 0 | KD2: 0 | KE2: 0 | KF2: 0 | KG2: 0 | KH2: 0 | KI2: 0 | KJ2: 0 | KK2: 0 | KL2: 0 | KV2: 700 | LO2: 658 | LP2: 658 | LQ2: 658 | LR2: 658 | LS2: 658 | LT2: 658 | LU2: 658 | LV2: 658 | LW2: 658 | LX2: 658 | LY2: 658 | LZ2: 658 | MJ2: 0 | MK2: 0 | ML2: 0 | MM2: 0 | MN2: 0 | MO2: 0 | MP2: 0 | MQ2: 0 | MR2: 0 | MS2: 0 | MT2: 0 | NC2: 900 | ND2: 900 | NE2: 900 | NF2: 900 | NG2: 900 | NH2: 900 | NI2: 900 | NJ2: 900 | NK2: 900 | NL2: 900 | NM2: 900 | NN2: 900 | NW2: 9900 | NX2: 0 | NY2: 0 | NZ2: 0 | OA2: 0 | OB2: 0 | OC2: 0 | OD2: 0 | OE2: 0 | OF2: 0 | OG2: 0 | OH2: 0 | OR2: 0 | OS2: 0 | OT2: 0 | OU2: 0 | OV2: 0 | OW2: 0 | OX2: 0 | OY2: 0 | OZ2: 0 | PA2: 0 | PB2: 0
A3: 2 | B3: Ram Kumar | C3: Teacher | D3: QWERTY12345 | E3: GSSS Malutana | F3: 52300 | G3: 7 | I3: 12 | J3: 700 | T3: Below 80% | Y3: 80% Or Above | AA3: 52300 | AB3: 52300 | AC3: 52300 | AD3: 52300 | AE3: 53900 | AF3: 53900 | AG3: 53900 | AH3: 53900 | AI3: 53900 | AJ3: 53900 | AK3: 53900 | AL3: 53900 | AP3: 0 | AV3: 0 | AW3: 0 | AX3: 0 | AY3: 0 | AZ3: 0 | BA3: 0 | BB3: 0 | BC3: 0 | BD3: 0 | BE3: 0 | BF3: 0 | BP3: 0 | BQ3: 0 | BR3: 0 | BS3: 0 | BT3: 0 | BU3: 0 | BV3: 0 | BW3: 0 | BX3: 0 | BY3: 0 | BZ3: 0 | CI3: 27719 | CJ3: 28765 | CK3: 28765 | CL3: 28765 | CM3: 29645 | CN3: 29645 | CO3: 29645 | CP3: 29645 | CQ3: 29645 | CR3: 29645 | CS3: 29645 | CT3: 29645 | CU3: 3138 | CV3: 0 | CX3: 0 | DC3: 5230 | DD3: 5230 | DE3: 5230 | DF3: 5230 | DG3: 5390 | DH3: 5390 | DI3: 5390 | DJ3: 5390 | DK3: 5390 | DL3: 5390 | DM3: 5390 | DN3: 5390 | DQ3: 0 | DX3: 0 | DY3: 0 | DZ3: 0 | EA3: 0 | EB3: 0 | EC3: 0 | ED3: 0 | EE3: 0 | EF3: 0 | EG3: 0 | EH3: 0 | ER3: 0 | ES3: 0 | ET3: 0 | EU3: 0 | EV3: 0 | EW3: 0 | EX3: 0 | EY3: 0 | EZ3: 0 | FA3: 0 | FB3: 0 | GA3: 6774 | GF3: 0 | GG3: 0 | GH3: 0 | GI3: 0 | GJ3: 0 | GK3: 0 | GL3: 0 | GM3: 0 | GN3: 0 | GO3: 0 | GP3: 0 | GZ3: 0 | HA3: 0 | HB3: 0 | HC3: 0 | HD3: 0 | HE3: 0 | HF3: 0 | HG3: 0 | HH3: 0 | HI3: 0 | HJ3: 0 | HS3: 3575 | HT3: 3575 | HU3: 3575 | HV3: 3575 | HW3: 3575 | HX3: 3575 | HY3: 3575 | HZ3: 3575 | IA3: 3575 | IB3: 3575 | IC3: 3575 | ID3: 3575 | IE3: 3138 | IF3: 0 | II3: 1694 | IN3: 0 | IO3: 0 | IP3: 0 | IQ3: 0 | IR3: 0 | IS3: 0 | IT3: 0 | IU3: 0 | IV3: 0 | IW3: 0 | IX3: 0 | JG3: 3000 | JH3: 3000 | JI3: 3000 | JJ3: 3000 | JK3: 3000 | JL3: 3000 | JM3: 3000 | JN3: 3000 | JO3: 3000 | JP3: 3000 | JQ3: 3000 | JR3: 3000 | KB3: 0 | KC3: 0 | KD3: 0 | KE3: 0 | KF3: 0 | KG3: 0 | KH3: 0 | KI3: 0 | KJ3: 0 | KK3: 0 | KL3: 0 | KV3: 700 | LO3: 658 | LP3: 658 | LQ3: 658 | LR3: 658 | LS3: 658 | LT3: 658 | LU3: 658 | LV3: 658 | LW3: 658 | LX3: 658 | LY3: 658 | LZ3: 658 | MI3: 900 | MJ3: 9000 | MK3: 900 | ML3: 900 | MM3: 900 | MN3: 900 | MO3: 900 | MP3: 900 | MQ3: 900 | MR3: 900 | MS3: 900 | MT3: 900 | NC3: 1000 | ND3: 1000 | NE3: 1000 | NF3: 1000 | NG3: 1000 | NH3: 1000 | NI3: 1000 | NJ3: 1000 | NK3: 1000 | NL3: 1000 | NM3: 1000 | NN3: 1000 | NX3: 0 | NY3: 0 | NZ3: 0 | OA3: 0 | OB3: 0 | OC3: 0 | OD3: 0 | OE3: 0 | OF3: 0 | OG3: 0 | OH3: 0 | OR3: 0 | OS3: 0 | OT3: 0 | OU3: 0 | OV3: 0 | OW3: 0 | OX3: 0 | OY3: 0 | OZ3: 0 | PA3: 0 | PB3: 0

Sheet salary
A2: =INDEX(data!$A:$A,MATCH(salary!$B$2,data!$B:$B,0)) -> 1 | B2: Pramod Kumar Saini | C2: Select Employee : | L2: ="Desig. : "&IFERROR(VLOOKUP(A2,pk_Tb,3,0),"") -> Desig. : Teacher | O2: ="PAN : "&IFERROR(VLOOKUP(A2,pk_Tb,4,0),"") -> PAN : QWERTY1234U
B4: Month Year | C4: ------------------Allowances--------------------- | M4: Total Allow | N4: ------------------Deductions--------------------- | X4: Total Dedu | Y4: Net Salary | Z4: TV No
C5: Basic | F5: DA | G5: HRA | H5: CCA | J5: Bonus | K5: ROP | N5: GPF | O5: GPFL | P5: SI | Q5: SIL | R5: GIS | S5: RGHS | T5: LIC | U5: ITAX
B6: 2025-03-01 | C6: 50800 | F6: 26924 | G6: 5080 | M6: =SUM(C6:J6)+L6-K6 -> 82804 | N6: 2850 | P6: 3000 | S6: 658 | X6: =SUM(N6:W6) -> 6508 | Y6: =M6-X6 -> 76296
B7: 2025-04-01 | C7: 50800 | D7: =D6 -> 0 | E7: =E6 -> 0 | F7: 27940 | G7: 5080 | H7: =H6 -> 0 | I7: =I6 -> 0 | K7: =K6 -> 0 | L7: =L6 -> 0 | M7: =SUM(C7:J7)+L7-K7 -> 83820 | N7: 2850 | O7: =O6 -> 0 | P7: 3000 | Q7: =Q6 -> 0 | R7: 700 | S7: 658 | T7: =T6 -> 0 | U7: =U6 -> 0 | V7: =V6 -> 0 | W7: =W6 -> 0 | X7: =SUM(N7:W7) -> 7208 | Y7: =M7-X7 -> 76612
B8: 2025-05-01 | C8: 50800 | D8: 0 | E8: 0 | F8: 27940 | G8: 5080 | H8: 0 | I8: 0 | K8: 0 | L8: 0 | M8: =SUM(C8:J8)+L8-K8 -> 83820 | N8: 2850 | O8: 0 | P8: 3000 | Q8: 0 | S8: 658 | T8: 0 | U8: 0 | V8: 0 | W8: 0 | X8: 6508 | Y8: 77312
B9: 2025-06-01 | C9: 50800 | D9: 0 | E9: 0 | F9: 27940 | G9: 5080 | H9: 0 | I9: 0 | K9: 0 | L9: 0 | M9: 83820 | N9: 2850 | O9: 0 | P9: 3000 | Q9: 0 | S9: 658 | T9: 0 | U9: 0 | V9: 0 | W9: 0 | X9: 6508 | Y9: 77312
B10: 2025-07-01 | C10: 52300 | D10: 0 | E10: 0 | F10: 28765 | G10: 5230 | H10: 0 | I10: 0 | K10: 0 | L10: 0 | M10: 86295 | N10: 3575 | O10: 0 | P10: 3000 | Q10: 0 | S10: 658 | T10: 0 | U10: 0 | V10: 0 | W10: 0 | X10: 7233 | Y10: 79062
B11: 2025-08-01 | C11: 52300 | D11: 0 | E11: 0 | F11: 28765 | G11: 5230 | H11: 0 | I11: 0 | K11: 0 | L11: 0 | M11: =SUM(C11:J11)+L11-K11 -> 86295 | N11: 3575 | O11: 0 | P11: 3000 | Q11: 0 | S11: 658 | T11: 0 | U11: 0 | V11: 0 | W11: 0 | X11: 7233 | Y11: 79062
B12: 2025-09-01 | C12: 52300 | D12: 0 | E12: 0 | F12: 28765 | G12: 5230 | H12: 0 | I12: 0 | K12: 0 | L12: 0 | M12: 86295 | N12: 3575 | O12: 0 | P12: 3000 | Q12: 0 | S12: 658 | T12: 0 | U12: 0 | V12: 0 | W12: 0 | X12: 7233 | Y12: 79062
B13: 2025-10-01 | C13: 52300 | D13: 0 | E13: 0 | F13: 28765 | G13: 5230 | H13: 0 | I13: 0 | K13: 0 | L13: 0 | M13: 86295 | N13: 3575 | O13: 0 | P13: 3000 | Q13: 0 | S13: 658 | T13: 0 | U13: 0 | V13: 0 | W13: 0 | X13: 7233 | Y13: 79062
B14: 2025-11-01 | C14: 52300 | D14: 0 | E14: 0 | F14: 28765 | G14: 5230 | H14: 0 | I14: 0 | K14: 0 | L14: 0 | M14: 86295 | N14: 3575 | O14: 0 | P14: 3000 | Q14: 0 | S14: 658 | T14: 0 | U14: 0 | V14: 0 | W14: 0 | X14: 7233 | Y14: 79062
B15: 2025-12-01 | C15: 52300 | D15: 0 | E15: 0 | F15: 28765 | G15: 5230 | H15: 0 | I15: 0 | K15: 0 | L15: 0 | M15: 86295 | N15: 3575 | O15: 0 | P15: 3000 | Q15: 0 | S15: 658 | T15: 0 | U15: 0 | V15: 0 | W15: 0 | X15: 7233 | Y15: 79062
B16: 2026-01-01 | C16: 52300 | D16: 0 | E16: 0 | F16: 28765 | G16: 5230 | H16: 0 | I16: 0 | K16: 0 | L16: 0 | M16: 86295 | N16: 3575 | O16: 0 | P16: 3000 | Q16: 0 | S16: 658 | T16: 0 | U16: 0 | V16: 0 | W16: 0 | X16: 7233 | Y16: 79062
B17: 2026-02-01 | C17: 52300 | D17: 0 | E17: 0 | F17: 28765 | G17: 5230 | H17: 0 | I17: 0 | K17: 0 | L17: 0 | M17: 86295 | N17: 3575 | O17: 0 | P17: 3000 | Q17: 0 | S17: 658 | T17: 0 | U17: 0 | V17: 0 | W17: 0 | X17: 7233 | Y17: 79062
B18: DA Arr | F18: 3048 | M18: 3048 | N18: 3048 | X18: 3048 | Y18: 0
B19: DA Arr | F19: 0 | M19: 0 | N19: 0 | X19: 0 | Y19: 0
B20: HRA Arr | G20: 0 | M20: 0 | X20: 0 | Y20: 0
B21: Surrender | C21: 26150 | F21: 14383 | M21: 40533 | X21: 0 | Y21: 40533
B22: Bonus | J22: 6774 | M22: 6774 | N22: 1694 | X22: 1694 | Y22: 5080
B23: Arrear | M23: 0 | X23: 0 | Y23: 0
B24: Arrear | M24: 0 | X24: 0 | Y24: 0
B25: Arrear | M25: 0 | X25: 0 | Y25: 0
B26: Total | C26: =SUM(C6:C25) -> 647750 | D26: =SUM(D6:D25) -> 0 | E26: 0 | F26: 358295 | G26: 62160 | H26: 0 | I26: 0 | J26: 6774 | K26: 0 | L26: 0 | M26: 1074979 | N26: 44742 | O26: 0 | P26: 36000 | Q26: 0 | R26: 700 | S26: 7896 | T26: 0 | U26: 0 | V26: 0 | W26: 0 | X26: 89338 | Y26: 985641

Sheet printF
B1: Annual Salary Statement of the Financial Year 2025-26 | AB1: =INDEX(data!$A:$A,MATCH(printF!$AC$1,data!$B:$B,0)) -> 1 | AC1: Pramod Kumar Saini | BZ1: 2025-01-01 | CA1: 55 | CB1: 53 | CC1: 10 | CD1: 10 | SA1: Designation | SB1: Posting Place
C2: Employee Name : | G2: =VLOOKUP($AB$1,pk_Tb,2,0) -> Pramod Kumar Saini | O2: Employee Desig. : | S2: =VLOOKUP($AB$1,pk_Tb,3,0) -> Teacher | BZ2: 2025-02-01 | CA2: 55 | CB2: 53 | CC2: 10 | CD2: 10 | SA2: Principal | SB2: GSSS Malutana
C3: Employee PAN : | G3: =VLOOKUP($AB$1,pk_Tb,4,0) -> QWERTY1234U | O3: DDO Office : | S3: =VLOOKUP($AB$1,pk_Tb,5,0) -> GSSS Malutana | BZ3: 2025-03-01 | CA3: 55 | CB3: 53 | CC3: 10 | CD3: 10 | SA3: Vice Principal | SB3: 1A
B4: Month Year | C4: ------------------Allowances--------------------- | M4: Gross Amount | N4: ------------------Deductions--------------------- | X4: Total Dedu | Y4: Net Amount | Z4: TV No | AX4: Pramod Kumar Saini | BI4: 55 | BJ4: 53 | BK4: =BI4-BJ4 -> 2 | BL4: =ROUND(AZ6*BK4/100,0) -> 1016 | BM4: 10 | BN4: 10 | BO4: =BM4-BN4 -> 0 | BP4: =ROUND(AZ6*BO4/100,) -> 0 | BZ4: 2025-04-01 | CA4: 55 | CB4: 55 | CC4: 10 | CD4: 10 | SA4: Lecturer | SB4: 2A
C5: Basic | F5: DA | G5: HRA | H5: CCA | J5: Bonus | K5: ROP | N5: GPF | O5: GPFL | P5: SI | Q5: SIL | R5: GIS | S5: RGHS | T5: LIC | U5: ITAX | AX5: =INDEX(data!A:A,MATCH(printF!AX4,data!B:B,0)) -> 1 | BI5: 55 | BJ5: 53 | BK5: =BI5-BJ5 -> 2 | BL5: =ROUND(AZ6*BK5/100,0) -> 1016 | BM5: 10 | BN5: 10 | BO5: =BM5-BN5 -> 0 | BP5: =ROUND(AZ6*BO5/100,) -> 0 | BZ5: 2025-05-01 | CA5: 55 | CB5: 55 | CC5: 10 | CD5: 10 | SA5: Sr Teacher | SB5: 3A
B6: 2025-03-01 | C6: =VLOOKUP($AB$1,pk_Tb,AB6,0) -> 50800 | D6: =VLOOKUP($AB$1,pk_Tb,AC6,0) -> 0 | E6: =VLOOKUP($AB$1,pk_Tb,AD6,0) -> 0 | F6: =VLOOKUP($AB$1,pk_Tb,AE6,0) -> 26924 | G6: =VLOOKUP($AB$1,pk_Tb,AF6,0) -> 5080 | H6: =VLOOKUP($AB$1,pk_Tb,AG6,0) -> 0 | I6: =VLOOKUP($AB$1,pk_Tb,AH6,0) -> 0 | J6: =VLOOKUP($AB$1,pk_Tb,AI6,0) -> 0 | K6: =VLOOKUP($AB$1,pk_Tb,AJ6,0) -> 0 | L6: =VLOOKUP($AB$1,pk_Tb,AK6,0) -> 0 | M6: =SUM(C6:J6)+L6-K6 -> 82804 | N6: =VLOOKUP($AB$1,pk_Tb,AL6,0) -> 2850 | O6: =VLOOKUP($AB$1,pk_Tb,AM6,0) -> 0 | P6: =VLOOKUP($AB$1,pk_Tb,AN6,0) -> 3000 | Q6: =VLOOKUP($AB$1,pk_Tb,AO6,0) -> 0 | R6: =VLOOKUP($AB$1,pk_Tb,AP6,0) -> 0 | S6: =VLOOKUP($AB$1,pk_Tb,AQ6,0) -> 658 | T6: =VLOOKUP($AB$1,pk_Tb,AR6,0) -> 0 | U6: =VLOOKUP($AB$1,pk_Tb,AS6,0) -> 900 | V6: =VLOOKUP($AB$1,pk_Tb,AT6,0) -> 9900 | W6: =VLOOKUP($AB$1,pk_Tb,AU6,0) -> 0 | X6: =SUM(N6:W6) -> 17308 | Y6: =M6-X6 -> 65496 | Z6: =VLOOKUP($AB$1,pk_Tb,AV6,0) -> 0 | AB6: 27 | AC6: =AB6+20 -> 47 | AD6: =AC6+20 -> 67 | AE6: =AD6+20 -> 87 | AF6: 107 | AG6: 127 | AH6: 147 | AI6: 167 | AJ6: 187 | AK6: 207 | AL6: 227 | AM6: 247 | AN6: 267 | AO6: 287 | AP6: 307 | AQ6: 327 | AR6: 347 | AS6: 367 | AT6: 387 | AU6: 407 | AV6: =AU6+20 -> 427 | AW6: 3 | AX6: =IFERROR(VLOOKUP($AX$5,pk_Tb,1,0),0) -> 1 | AY6: 2025-03-01 | AZ6: =AX11 -> 50800 | BA6: =ROUND(AZ6*BJ6/100,0) -> 26924 | BB6: =ROUND(AZ6*BN6/100,0) -> 5080 | BD6: =IF(AZ6>167000,10500,IF(AZ6>116000,8900,IF(AZ6>80000,6150,IF(AZ6>72000,4800,BH6)))) -> 2850 | BE6: =IF($AZ$6>72000,5000,IF($AZ$6>46500,3000,IF($AZ$6>28500,2200,IF($AZ$6>22000,1200,IF($AZ$6>0,800,0))))) -> 3000 | BG6: =IF(AZ6>54000,875,IF(AZ6>33500,658,IF(AZ6>18000,440,IF(AZ6>0,265,0)))) -> 658 | BH6: =IF(AZ6>62000,4200,IF(AZ6>51500,3575,IF(AZ6>38500,2850,IF(AZ6>28500,2100,IF(AZ6>23100,1625,1450))))) -> 2850 | BI6: 55 | BJ6: 53 | BK6: 2 | BL6: =ROUND(AZ6*BK6/100,0) -> 1016 | BM6: 10 | BN6: 10 | BO6: 0 | BP6: =ROUND(AZ6*BO6/100,) -> 0 | BZ6: 2025-06-01 | CA6: 55 | CB6: 55 | CC6: 10 | CD6: 10 | SA6: Teacher | SB6: 4A
B7: 2025-04-01 | C7: 50800 | D7: 0 | E7: 0 | F7: 27940 | G7: 5080 | H7: 0 | I7: 0 | J7: 0 | K7: 0 | L7: 0 | M7: =SUM(C7:J7)+L7-K7 -> 83820 | N7: 2850 | O7: 0 | P7: 3000 | Q7: 0 | R7: 700 | S7: 658 | T7: 0 | U7: 900 | V7: 0 | W7: 0 | X7: =SUM(N7:W7) -> 8108 | Y7: =M7-X7 -> 75712 | Z7: 0 | AB7: 28 | AC7: =AB7+20 -> 48 | AD7: 68 | AE7: 88 | AF7: 108 | AG7: 128 | AH7: 148 | AI7: 168 | AJ7: 188 | AK7: 208 | AL7: 228 | AM7: 248 | AN7: 268 | AO7: 288 | AP7: 308 | AQ7: 328 | AR7: 348 | AS7: =AR7+20 -> 368 | AT7: 388 | AU7: 408 | AV7: 428 | AW7: 4 | AX7: =IFERROR(VLOOKUP($AX$5,pk_Tb,2,0),0) -> Pramod Kumar Saini | AY7: 2025-04-01 | AZ7: =AZ6 -> 50800 | BA7: 27940 | BB7: 5080 | BD7: 2850 | BE7: =IF($AZ$6>72000,5000,IF($AZ$6>46500,3000,IF($AZ$6>28500,2200,IF($AZ$6>22000,1200,IF($AZ$6>0,800,0))))) -> 3000 | BF7: =AX15 -> 700 | BG7: =IF(AZ7>54000,875,IF(AZ7>33500,658,IF(AZ7>18000,440,IF(AZ7>0,265,0)))) -> 658 | BH7: 2850 | BI7: 55 | BJ7: 55 | BK7: 0 | BL7: 0 | BM7: 10 | BN7: 10 | BO7: 0 | BP7: 0 | BZ7: 2025-07-01 | CA7: 55 | CB7: 55 | CC7: 10 | CD7: 10 | SA7: PET III | SB7: 5A
B8: 2025-05-01 | C8: 50800 | D8: 0 | E8: 0 | F8: 27940 | G8: 5080 | H8: 0 | I8: 0 | J8: 0 | K8: 0 | L8: 0 | M8: 83820 | N8: 2850 | O8: 0 | P8: 3000 | Q8: 0 | R8: 0 | S8: 658 | T8: 0 | U8: 900 | V8: 0 | W8: 0 | X8: 7408 | Y8: 76412 | Z8: 0 | AB8: 29 | AC8: 49 | AD8: 69 | AE8: 89 | AF8: 109 | AG8: 129 | AH8: 149 | AI8: 169 | AJ8: 189 | AK8: 209 | AL8: 229 | AM8: 249 | AN8: 269 | AO8: 289 | AP8: 309 | AQ8: 329 | AR8: 349 | AS8: 369 | AT8: 389 | AU8: 409 | AV8: 429 | AW8: 5 | AX8: =IFERROR(VLOOKUP($AX$5,pk_Tb,3,0),0) -> Teacher | AY8: 2025-05-01 | AZ8: =AZ7 -> 50800 | BA8: 27940 | BB8: 5080 | BD8: 2850 | BE8: 3000 | BG8: 658 | BH8: 2850 | BI8: 55 | BJ8: 55 | BK8: 0 | BL8: 0 | BM8: 10 | BN8: 10 | BO8: 0 | BP8: 0 | BZ8: 2025-08-01 | CA8: 55 | CB8: 55 | CC8: 10 | CD8: 10 | SA8: Prabodhak | SB8: 6A
B9: 2025-06-01 | C9: 50800 | D9: 0 | E9: 0 | F9: 27940 | G9: 5080 | H9: 0 | I9: 0 | J9: 0 | K9: 0 | L9: 0 | M9: 83820 | N9: 2850 | O9: 0 | P9: 3000 | Q9: 0 | R9: 0 | S9: 658 | T9: 0 | U9: 900 | V9: 0 | W9: 0 | X9: 7408 | Y9: 76412 | Z9: 0 | AB9: 30 | AC9: 50 | AD9: 70 | AE9: 90 | AF9: 110 | AG9: 130 | AH9: 150 | AI9: 170 | AJ9: 190 | AK9: 210 | AL9: 230 | AM9: 250 | AN9: 270 | AO9: 290 | AP9: 310 | AQ9: 330 | AR9: 350 | AS9: 370 | AT9: 390 | AU9: 410 | AV9: 430 | AW9: 6 | AX9: =IFERROR(VLOOKUP($AX$5,pk_Tb,4,0),0) -> QWERTY1234U | AY9: 2025-06-01 | AZ9: =AZ8 -> 50800 | BA9: 27940 | BB9: 5080 | BD9: 2850 | BE9: 3000 | BG9: 658 | BH9: 2850 | BI9: 55 | BJ9: 55 | BK9: 0 | BL9: 0 | BM9: 10 | BN9: 10 | BO9: 0 | BP9: 0 | BZ9: 2025-09-01 | CA9: 55 | CB9: 55 | CC9: 10 | CD9: 10 | SA9: Sr Assistant | SB9: 7A
B10: 2025-07-01 | C10: 52300 | D10: 0 | E10: 0 | F10: 28765 | G10: 5230 | H10: 0 | I10: 0 | J10: 0 | K10: 0 | L10: 0 | M10: 86295 | N10: 3575 | O10: 0 | P10: 3000 | Q10: 0 | R10: 0 | S10: 658 | T10: 0 | U10: 900 | V10: 0 | W10: 0 | X10: 8133 | Y10: 78162 | Z10: 0 | AB10: 31 | AC10: 51 | AD10: 71 | AE10: 91 | AF10: 111 | AG10: 131 | AH10: 151 | AI10: 171 | AJ10: 191 | AK10: 211 | AL10: 231 | AM10: 251 | AN10: 271 | AO10: 291 | AP10: 311 | AQ10: 331 | AR10: 351 | AS10: 371 | AT10: 391 | AU10: 411 | AV10: 431 | AW10: 7 | AX10: =IFERROR(VLOOKUP($AX$5,pk_Tb,5,0),0) -> GSSS Malutana | AY10: 2025-07-01 | AZ10: =IF(AX12=AW10,MROUND(AZ9*103%,100),AZ9) -> 52300 | BA10: 28765 | BB10: 5230 | BD10: 3575 | BE10: 3000 | BG10: 658 | BH10: 3575 | BI10: 55 | BJ10: 55 | BK10: 0 | BL10: 0 | BM10: 10 | BN10: 10 | BO10: 0 | BP10: 0 | BZ10: 2025-10-01 | CA10: 55 | CB10: 55 | CC10: 10 | CD10: 10 | SA10: Jr Assistant | SB10: 8A
B11: 2025-08-01 | C11: 52300 | D11: 0 | E11: 0 | F11: 28765 | G11: 5230 | H11: 0 | I11: 0 | J11: 0 | K11: 0 | L11: 0 | M11: 86295 | N11: 3575 | O11: 0 | P11: 3000 | Q11: 0 | R11: 0 | S11: 658 | T11: 0 | U11: 900 | V11: 0 | W11: 0 | X11: 8133 | Y11: 78162 | Z11: 0 | AB11: 32 | AC11: 52 | AD11: 72 | AE11: 92 | AF11: 112 | AG11: 132 | AH11: 152 | AI11: 172 | AJ11: 192 | AK11: 212 | AL11: 232 | AM11: 252 | AN11: 272 | AO11: 292 | AP11: 312 | AQ11: 332 | AR11: 352 | AS11: 372 | AT11: 392 | AU11: 412 | AV11: 432 | AW11: 8 | AX11: =IFERROR(VLOOKUP($AX$5,pk_Tb,6,0),0) -> 50800 | AY11: 2025-08-01 | AZ11: =AZ10 -> 52300 | BA11: 28765 | BB11: 5230 | BD11: 3575 | BE11: 3000 | BG11: 658 | BH11: 3575 | BI11: 55 | BJ11: 55 | BK11: 0 | BL11: 0 | BM11: 10 | BN11: 10 | BO11: 0 | BP11: 0 | BZ11: 2025-11-01 | CA11: 55 | CB11: 55 | CC11: 10 | CD11: 10 | SA11: BCI | SB11: 9A
B12: 2025-09-01 | C12: 52300 | D12: 0 | E12: 0 | F12: 28765 | G12: 5230 | H12: 0 | I12: 0 | J12: 0 | K12: 0 | L12: 0 | M12: 86295 | N12: 3575 | O12: 0 | P12: 3000 | Q12: 0 | R12: 0 | S12: 658 | T12: 0 | U12: 900 | V12: 0 | W12: 0 | X12: 8133 | Y12: 78162 | Z12: 0 | AB12: 33 | AC12: 53 | AD12: 73 | AE12: 93 | AF12: 113 | AG12: 133 | AH12: 153 | AI12: 173 | AJ12: 193 | AK12: 213 | AL12: 233 | AM12: 253 | AN12: 273 | AO12: 293 | AP12: 313 | AQ12: 333 | AR12: 353 | AS12: 373 | AT12: 393 | AU12: 413 | AV12: 433 | AW12: 9 | AX12: =IFERROR(VLOOKUP($AX$5,pk_Tb,7,0),0) -> 7 | AY12: 2025-09-01 | AZ12: =AZ11 -> 52300 | BA12: 28765 | BB12: 5230 | BD12: 3575 | BE12: 3000 | BG12: 658 | BH12: 3575 | BI12: 55 | BJ12: 55 | BK12: 0 | BL12: 0 | BM12: 10 | BN12: 10 | BO12: 0 | BP12: 0 | BZ12: 2025-12-01 | CA12: 55 | CB12: 55 | CC12: 10 | CD12: 10 | SA12: Nil1
B13: 2025-10-01 | C13: 52300 | D13: 0 | E13: 0 | F13: 28765 | G13: 5230 | H13: 0 | I13: 0 | J13: 0 | K13: 0 | L13: 0 | M13: 86295 | N13: 3575 | O13: 0 | P13: 3000 | Q13: 0 | R13: 0 | S13: 658 | T13: 0 | U13: 900 | V13: 0 | W13: 0 | X13: 8133 | Y13: 78162 | Z13: 0 | AB13: 34 | AC13: 54 | AD13: 74 | AE13: 94 | AF13: 114 | AG13: 134 | AH13: 154 | AI13: 174 | AJ13: 194 | AK13: 214 | AL13: 234 | AM13: 254 | AN13: 274 | AO13: 294 | AP13: 314 | AQ13: 334 | AR13: 354 | AS13: 374 | AT13: 394 | AU13: 414 | AV13: 434 | AW13: 10 | AX13: =IFERROR(VLOOKUP($AX$5,pk_Tb,8,0),0) -> 10 | AY13: 2025-10-01 | AZ13: =AZ12 -> 52300 | BA13: 28765 | BB13: 5230 | BD13: 3575 | BE13: 3000 | BG13: 658 | BH13: 3575 | BI13: 55 | BJ13: 55 | BK13: 0 | BL13: 0 | BM13: 10 | BN13: 10 | BO13: 0 | BP13: 0 | BZ13: 2026-01-01 | CA13: 55 | CB13: 55 | CC13: 10 | CD13: 10 | SA13: Nil2
B14: 2025-11-01 | C14: 52300 | D14: 0 | E14: 0 | F14: 28765 | G14: 5230 | H14: 0 | I14: 0 | J14: 0 | K14: 0 | L14: 0 | M14: 86295 | N14: 3575 | O14: 0 | P14: 3000 | Q14: 0 | R14: 0 | S14: 658 | T14: 0 | U14: 900 | V14: 0 | W14: 0 | X14: 8133 | Y14: 78162 | Z14: 0 | AB14: 35 | AC14: 55 | AD14: 75 | AE14: 95 | AF14: 115 | AG14: 135 | AH14: 155 | AI14: 175 | AJ14: 195 | AK14: 215 | AL14: 235 | AM14: 255 | AN14: 275 | AO14: 295 | AP14: 315 | AQ14: 335 | AR14: 355 | AS14: 375 | AT14: 395 | AU14: 415 | AV14: 435 | AW14: 11 | AX14: =IFERROR(VLOOKUP($AX$5,pk_Tb,9,0),0) -> 12 | AY14: 2025-11-01 | AZ14: =AZ13 -> 52300 | BA14: 28765 | BB14: 5230 | BD14: 3575 | BE14: 3000 | BG14: 658 | BH14: 3575 | BI14: 55 | BJ14: 55 | BK14: 0 | BL14: 0 | BM14: 10 | BN14: 10 | BO14: 0 | BP14: 0 | BZ14: 2026-02-01 | CA14: 55 | CB14: 55 | CC14: 10 | CD14: 10 | SA14: Nil3
B15: 2025-12-01 | C15: 52300 | D15: 0 | E15: 0 | F15: 28765 | G15: 5230 | H15: 0 | I15: 0 | J15: 0 | K15: 0 | L15: 0 | M15: 86295 | N15: 3575 | O15: 0 | P15: 3000 | Q15: 0 | R15: 0 | S15: 658 | T15: 0 | U15: 900 | V15: 0 | W15: 0 | X15: 8133 | Y15: 78162 | Z15: 0 | AB15: 36 | AC15: 56 | AD15: 76 | AE15: 96 | AF15: 116 | AG15: 136 | AH15: 156 | AI15: 176 | AJ15: 196 | AK15: 216 | AL15: 236 | AM15: 256 | AN15: 276 | AO15: 296 | AP15: 316 | AQ15: 336 | AR15: 356 | AS15: 376 | AT15: 396 | AU15: 416 | AV15: 436 | AW15: 12 | AX15: =IFERROR(VLOOKUP($AX$5,pk_Tb,10,0),0) -> 700 | AY15: 2025-12-01 | AZ15: =AZ14 -> 52300 | BA15: 28765 | BB15: 5230 | BD15: 3575 | BE15: 3000 | BG15: 658 | BH15: 3575 | BI15: 55 | BJ15: 55 | BK15: 0 | BL15: 0 | BM15: 10 | BN15: 10 | BO15: 0 | BP15: 0 | SA15: Nil4
B16: 2026-01-01 | C16: 52300 | D16: 0 | E16: 0 | F16: 28765 | G16: 5230 | H16: 0 | I16: 0 | J16: 0 | K16: 0 | L16: 0 | M16: 86295 | N16: 3575 | O16: 0 | P16: 3000 | Q16: 0 | R16: 0 | S16: 658 | T16: 0 | U16: 900 | V16: 0 | W16: 0 | X16: 8133 | Y16: 78162 | Z16: 0 | AB16: 37 | AC16: 57 | AD16: 77 | AE16: 97 | AF16: 117 | AG16: 137 | AH16: 157 | AI16: 177 | AJ16: 197 | AK16: 217 | AL16: 237 | AM16: 257 | AN16: 277 | AO16: 297 | AP16: 317 | AQ16: 337 | AR16: 357 | AS16: 377 | AT16: 397 | AU16: 417 | AV16: 437 | AW16: 1 | AY16: 2026-01-01 | AZ16: =IF(AX12=AW16,MROUND(AZ15*103%,100),AZ15) -> 52300 | BA16: 28765 | BB16: 5230 | BD16: 3575 | BE16: 3000 | BG16: 658 | BH16: 3575 | BI16: 55 | BJ16: 55 | BK16: 0 | BL16: 0 | BM16: 10 | BN16: 10 | BO16: 0 | BP16: 0 | SA16: Nil5
B17: 2026-02-01 | C17: 52300 | D17: 0 | E17: 0 | F17: 28765 | G17: 5230 | H17: 0 | I17: 0 | J17: 0 | K17: 0 | L17: 0 | M17: 86295 | N17: 3575 | O17: 0 | P17: 3000 | Q17: 0 | R17: 0 | S17: 658 | T17: 0 | U17: 900 | V17: 0 | W17: 0 | X17: 8133 | Y17: 78162 | Z17: 0 | AB17: 38 | AC17: 58 | AD17: 78 | AE17: 98 | AF17: 118 | AG17: 138 | AH17: 158 | AI17: 178 | AJ17: 198 | AK17: 218 | AL17: 238 | AM17: 258 | AN17: 278 | AO17: 298 | AP17: 318 | AQ17: 338 | AR17: 358 | AS17: 378 | AT17: 398 | AU17: 418 | AV17: 438 | AW17: 2 | AY17: 2026-02-01 | AZ17: =AZ16 -> 52300 | BA17: 28765 | BB17: 5230 | BD17: 3575 | BE17: 3000 | BG17: 658 | BH17: 3575 | BI17: 55 | BJ17: 55 | BK17: 0 | BL17: 0 | BM17: 10 | BN17: 10 | BO17: 0 | BP17: 0 | SA17: Nil6
B18: DA Arr | C18: 0 | D18: 0 | E18: 0 | F18: 3048 | G18: 0 | H18: 0 | I18: 0 | J18: 0 | K18: 0 | L18: 0 | M18: 3048 | N18: 3048 | O18: 0 | P18: 0 | Q18: 0 | R18: 0 | S18: 0 | T18: 0 | U18: 0 | V18: 0 | W18: 0 | X18: 3048 | Y18: 0 | Z18: 0 | AB18: 39 | AC18: 59 | AD18: 79 | AE18: 99 | AF18: 119 | AG18: 139 | AH18: 159 | AI18: 179 | AJ18: 199 | AK18: 219 | AL18: 239 | AM18: 259 | AN18: 279 | AO18: 299 | AP18: 319 | AQ18: 339 | AR18: 359 | AS18: 379 | AT18: 399 | AU18: 419 | AV18: 439 | AY18: DA Arr | BA18: =SUM(BL4:BL9) -> 3048 | BD18: =BA18 -> 3048 | SA18: Nil7
B19: DA Arr | C19: 0 | D19: 0 | E19: 0 | F19: 0 | G19: 0 | H19: 0 | I19: 0 | J19: 0 | K19: 0 | L19: 0 | M19: 0 | N19: 0 | O19: 0 | P19: 0 | Q19: 0 | R19: 0 | S19: 0 | T19: 0 | U19: 0 | V19: 0 | W19: 0 | X19: 0 | Y19: 0 | Z19: 0 | AB19: 40 | AC19: 60 | AD19: 80 | AE19: 100 | AF19: 120 | AG19: 140 | AH19: 160 | AI19: 180 | AJ19: 200 | AK19: 220 | AL19: 240 | AM19: 260 | AN19: 280 | AO19: 300 | AP19: 320 | AQ19: 340 | AR19: 360 | AS19: 380 | AT19: 400 | AU19: 420 | AV19: 440 | AY19: DA Arr | BA19: =SUM(BL10:BL17) -> 0 | BD19: =BA19 -> 0 | SA19: Nil8
B20: HRA Arr | C20: 0 | D20: 0 | E20: 0 | F20: 0 | G20: 0 | H20: 0 | I20: 0 | J20: 0 | K20: 0 | L20: 0 | M20: 0 | N20: 0 | O20: 0 | P20: 0 | Q20: 0 | R20: 0 | S20: 0 | T20: 0 | U20: 0 | V20: 0 | W20: 0 | X20: 0 | Y20: 0 | Z20: 0 | AB20: 41 | AC20: 61 | AD20: 81 | AE20: 101 | AF20: 121 | AG20: 141 | AH20: 161 | AI20: 181 | AJ20: 201 | AK20: 221 | AL20: 241 | AM20: 261 | AN20: 281 | AO20: 301 | AP20: 321 | AQ20: 341 | AR20: 361 | AS20: 381 | AT20: 401 | AU20: 421 | AV20: 441 | AY20: HRA Arr | BB20: =SUM(BP4:BP17) -> 0 | SA20: Nil9
B21: Surrender | C21: 26150 | D21: 0 | E21: 0 | F21: 14383 | G21: 0 | H21: 0 | I21: 0 | J21: 0 | K21: 0 | L21: 0 | M21: 40533 | N21: 0 | O21: 0 | P21: 0 | Q21: 0 | R21: 0 | S21: 0 | T21: 0 | U21: 0 | V21: 0 | W21: 0 | X21: 0 | Y21: 40533 | Z21: 0 | AB21: 42 | AC21: 62 | AD21: 82 | AE21: 102 | AF21: 122 | AG21: 142 | AH21: 162 | AI21: 182 | AJ21: 202 | AK21: =AJ21+20 -> 222 | AL21: 242 | AM21: 262 | AN21: 282 | AO21: 302 | AP21: 322 | AQ21: 342 | AR21: 362 | AS21: 382 | AT21: 402 | AU21: 422 | AV21: 442 | AY21: Surrender | AZ21: =IFERROR(ROUND(VLOOKUP(AX13,AW6:BA17,4,0)/2,0),) -> 26150 | BA21: =IFERROR(ROUND(VLOOKUP(AX13,AW6:BA17,5,0)/2,0),) -> 14383 | SA21: Nil10
B22: Bonus | C22: 0 | D22: 0 | E22: 0 | F22: 0 | G22: 0 | H22: 0 | I22: 0 | J22: 6774 | K22: 0 | L22: 0 | M22: 6774 | N22: 1694 | O22: 0 | P22: 0 | Q22: 0 | R22: 0 | S22: 0 | T22: 0 | U22: 0 | V22: 0 | W22: 0 | X22: 1694 | Y22: 5080 | Z22: 0 | AB22: 43 | AC22: 63 | AD22: =AC22+20 -> 83 | AE22: 103 | AF22: 123 | AG22: 143 | AH22: 163 | AI22: 183 | AJ22: 203 | AK22: 223 | AL22: 243 | AM22: 263 | AN22: 283 | AO22: 303 | AP22: 323 | AQ22: 343 | AR22: 363 | AS22: 383 | AT22: 403 | AU22: 423 | AV22: 443 | AY22: Bonus | BC22: =ROUND((6774/12)*AX14,0) -> 6774 | BD22: =ROUND(BC22*25/100,0) -> 1694
B23: Arrear | C23: 0 | D23: 0 | E23: 0 | F23: 0 | G23: 0 | H23: 0 | I23: 0 | J23: 0 | K23: 0 | L23: 0 | M23: 0 | N23: 0 | O23: 0 | P23: 0 | Q23: 0 | R23: 0 | S23: 0 | T23: 0 | U23: 0 | V23: 0 | W23: 0 | X23: 0 | Y23: 0 | Z23: 0 | AB23: 44 | AC23: 64 | AD23: =AC23+20 -> 84 | AE23: 104 | AF23: 124 | AG23: 144 | AH23: 164 | AI23: 184 | AJ23: 204 | AK23: 224 | AL23: 244 | AM23: 264 | AN23: 284 | AO23: 304 | AP23: 324 | AQ23: 344 | AR23: 364 | AS23: 384 | AT23: 404 | AU23: 424 | AV23: 444 | AY23: Arrear
B24: Arrear | C24: 0 | D24: 0 | E24: 0 | F24: 0 | G24: 0 | H24: 0 | I24: 0 | J24: 0 | K24: 0 | L24: 0 | M24: 0 | N24: 0 | O24: 0 | P24: 0 | Q24: 0 | R24: 0 | S24: 0 | T24: 0 | U24: 0 | V24: 0 | W24: 0 | X24: 0 | Y24: 0 | Z24: 0 | AB24: 45 | AC24: 65 | AD24: =AC24+20 -> 85 | AE24: 105 | AF24: 125 | AG24: 145 | AH24: 165 | AI24: 185 | AJ24: 205 | AK24: 225 | AL24: 245 | AM24: 265 | AN24: 285 | AO24: 305 | AP24: 325 | AQ24: 345 | AR24: 365 | AS24: 385 | AT24: 405 | AU24: 425 | AV24: 445 | AY24: Arrear
B25: Arrear | C25: 0 | D25: 0 | E25: 0 | F25: 0 | G25: 0 | H25: 0 | I25: 0 | J25: 0 | K25: 0 | L25: 0 | M25: 0 | N25: 0 | O25: 0 | P25: 0 | Q25: 0 | R25: 0 | S25: 0 | T25: 0 | U25: 0 | V25: 0 | W25: 0 | X25: 0 | Y25: 0 | Z25: 0 | AB25: 46 | AC25: 66 | AD25: =AC25+20 -> 86 | AE25: 106 | AF25: 126 | AG25: 146 | AH25: 166 | AI25: 186 | AJ25: 206 | AK25: 226 | AL25: 246 | AM25: 266 | AN25: 286 | AO25: 306 | AP25: 326 | AQ25: 346 | AR25: 366 | AS25: 386 | AT25: 406 | AU25: 426 | AV25: 446 | AY25: Arrear
B26: Total | C26: =SUM(C6:C25) -> 647750 | D26: =SUM(D6:D25) -> 0 | E26: 0 | F26: 358295 | G26: 62160 | H26: 0 | I26: 0 | J26: 6774 | K26: 0 | L26: 0 | M26: 1074979 | N26: 44742 | O26: 0 | P26: 36000 | Q26: 0 | R26: 700 | S26: 7896 | T26: 0 | U26: 10800 | V26: 9900 | W26: 0 | X26: 110038 | Y26: 964941
N28: Employee Signature | W28: DDO Signature

Sheet backE
Y1: 1 | Z1: =IFERROR(VLOOKUP($AA$1,pk_Tb,Y1,0),"") -> 1 | AA1: =printF!AB1 -> 1
B2: Income Tax Calculation for Financial Year 2025-26 Assessment Year 2026-27 | Y2: 2 | Z2: Pramod Kumar Saini
B3: ="Name (Designation) : "&Z2&" ("&Z3&")" -> Name (Designation) : Pramod Kumar Saini (Teacher) | V3: ="PAN : "&Z4 -> PAN : QWERTY1234U | Y3: 3 | Z3: Teacher
B4: ="DDO Office : "&Z5 -> DDO Office : GSSS Malutana | V4: As per Old Tax Regime | Y4: 4 | Z4: QWERTY1234U
B5: 1. | C5: Gross Salary... (Including all allowance u/s 17... i.e. Govt. contribution towards NPS) | V5: =printF!M26 -> 1074979 | Y5: 5 | Z5: GSSS Malutana
B6: 2. | C6: HRA exemption as per eligibility u/s 10(13-A) whether living in … Rented House | V6: =IFERROR(MIN(Z11,SUM(salary!G6:G17)),0) -> 62160
B7: 3. | C7: Net Salary [1-2] | W7: =V5-V6 -> 1012819
B8: 4. | C8: Standard Deduction u/s 16(ia) | V8: =MAX(MIN(50000,W7),0) -> 50000
B9: 5. | C9: Income chargeable under the head ''Salaries'' [3-4] | W9: =W7-V8 -> 962819
B10: 6. | C10: Interest payable on borrowed capital u/s 24b | V10: =IFERROR(MIN(Z12,200000),0) -> 0
B11: 7. | C11: Interest from saving Account / Deposits / Income tax refund | V11: =Z13 -> 30000 | Y11: 11 | Z11: 100000
B12: 8. | C12: Gross Total Income [5+6+7] | W12: =W9+V11-V10 -> 992819 | Y12: 12 | Z12: 0
B13: 9. | C13: Deductions under Chapter VI-A | Y13: 13 | Z13: 30000
C14: (a) | D14: 80C Life insurance premia, deferred annuity, contributions to provident fund etc. | V14: =SUM(V15:V18) -> 81442 | Y14: 14 | Z14: 50000
D15: (i) | E15: GPF/GPF 2004 | V15: =printF!N26 -> 44742 | Y15: 15 | Z15: 0
D16: (ii) | E16: State Insurance | V16: =printF!P26 -> 36000 | Y16: 16 | Z16: 0
D17: (iii) | E17: Group Insurance Accidental | V17: =printF!R26 -> 700 | Y17: 17 | Z17: 0
D18: (iv) | E18: LIC annual premium | V18: =printF!T26 -> 0 | Y18: 18 | Z18: 0
C19: (b) | D19: Any other deductible total amount u/s 80C, 80CCC & 80CCD(1) | V19: =Z14+Z15+Z16 -> 50000 | Y19: 19 | Z19: 25000
D20: Total deductible amount u/s 80C, 80CCC & 80CCD(1) | V20: =V14+V19 -> 131442 | W20: =MIN((V14+V19),150000) -> 131442 | Y20: 20 | Z20: 0
C21: (c) | D21: 80CCD(1B) Additional contribution towads NPS | V21: =Z17 -> 0 | W21: =MIN(V21,50000) -> 0 | Y21: 21 | Z21: 0
C22: (d) | D22: 80CCD(2) Employer contribution towards NPS | V22: =Z18 -> 0 | W22: =MIN(ROUND(10%*W7,0),V22) -> 0 | Y22: 22 | Z22: 0
C23: (e) | D23: 80D Deduction in respect of Health Insurance premia | V23: =Z19 -> 25000 | W23: =MIN(75000,V23) -> 25000 | Y23: 23 | Z23: 0
C24: (f) | D24: 80DD Maintenance including medical treatment of a dependent who is a person with disability | V24: =IF(Z20="Below 80%",75000,IF(Z20="80% Or Above",125000,0)) -> 0 | W24: =V24 -> 0 | Y24: 24 | Z24: 10000
C25: (g) | D25: 80DDB Medical treatment of specified disease | V25: =Z21 -> 0 | W25: =MIN(100000,V25) -> 0 | Y25: 25 | Z25: 0
C26: (h) | D26: 80E Interest on loan taken for higher education | V26: =Z22 -> 0 | W26: =V26 -> 0 | Y26: 26 | Z26: 0
C27: (j) | D27: 80G Donations to certain funds, charitable institutions, etc. | V27: =Z23 -> 0 | W27: =V27 -> 0
C28: (j) | D28: 80TTA Interest on saving bank Accounts in case of other than Resident senior citizens | V28: =Z24 -> 10000 | W28: =MIN(10000,V28,V11) -> 10000
C29: (k) | D29: 80U In case of a person with disability | V29: =IF(Z25="Below 80%",75000,IF(Z25="80% Or Above",125000,0)) -> 0 | W29: =V29 -> 0
B30: 10. | C30: Total Deductions under Chapter VI-A | W30: =SUM(W20:W29) -> 166442
B31: 11. | C31: Total Taxable Income [8-10] | W31: =IF(ROUND(W12-W30,-1)<0,0,ROUND(W12-W30,-1)) -> 826380
C32: Tax Calculation Table
C33: Income Slab | I33: Rate | K33: Taxable Income | O33: Tax
C34: Up To ₹ 250000 | I34: Nil | K34: =MAX(IF(W31>=250000,250000,W31),0) -> 250000 | L34: Nil | M34: =MAX(IF($F$31>=250000,250000,$F$31),0) -> 0 | N34: Nil | O34: Nil
C35: ₹ 250001 To ₹ 500000 | I35: 0.05 | K35: =IF(W31>=500000,250000,IF(W31<=250000,0,(W31-K34))) -> 250000 | L35: =ROUND(J35*K35,0) -> 0 | M35: =IF($F$31>=500000,250000,IF($F$31<=250000,0,($F$31-M34))) -> 0 | N35: =ROUND(L35*M35,0) -> 0 | O35: =ROUND(I35*K35,0) -> 12500
C36: ₹ 500001 To ₹ 1000000 | I36: 0.2 | K36: =IF(W31>=1000000,500000,IF(W31<=500000,0,(W31-K34-K35))) -> 326380 | O36: =ROUND(I36*K36,0) -> 65276
C37: Above ₹ 1000000 | I37: 0.3 | K37: =IF(W31<=1000000,0,(W31-1000000)) -> 0 | O37: =ROUND(I37*K37,0) -> 0 | S37: =W31=SUM(K34:N37) -> TRUE
B38: 12. | C38: Tax Payable on Total Income | W38: =SUM(O35:R37) -> 77776
B39: 13. | C39: Rebate u/s 87A | W39: =IF(W31>=500000,0,MIN(12500,W38)) -> 0
B40: 14. | C40: Tax Payable after Rebate [12-13] | W40: =W38-W39 -> 77776
B41: 15. | C41: Health and Education Cess | W41: =ROUND(4%*W40,0) -> 3111
B42: 16. | C42: Total Tax & Cess [14+15] | W42: =W40+W41 -> 80887
B43: 17. | C43: Relief u/s 89 | W43: =Z26 -> 0
B44: 18. | C44: Balance Tax after Relief [16-17] | W44: =W42-W43 -> 80887
B45: 19. | C45: Total Taxes deducted at Sources | W45: =printF!U26 -> 10800
B46: 20. | C46: Amount Payable [18-19] | W46: =MAX(0,(W44-W45)) -> 70087
B47: 21. | C47: Refund [19-18] | W47: =MAX(0,(W45-W44)) -> 0
V49: Employee Signature

Sheet backN
B2: Income Tax Calculation for Financial Year 2025-26 Assessment Year 2026-27
B3: =backE!B3 -> Name (Designation) : Pramod Kumar Saini (Teacher) | V3: =backE!V3 -> PAN : QWERTY1234U
B4: =backE!B4 -> DDO Office : GSSS Malutana | V4: As per New Tax Regime
B5: 1. | C5: Gross Salary... (Including all allowance u/s 17... i.e. Govt. contribution towards NPS) | V5: =printF!M26 -> 1074979
B6: 2. | C6: HRA exemption as per eligibility u/s 10(13-A) whether living in … Rented House | V6: 0
B7: 3. | C7: Net Salary [1-2] | W7: =V5-V6 -> 1074979
B8: 4. | C8: Standard Deduction u/s 16(ia) | V8: =MAX(MIN(W7,75000),0) -> 75000
B9: 5. | C9: Income chargeable under the head ''Salaries'' [3-4] | W9: =W7-V8 -> 999979
B10: 6. | C10: Interest payable on borrowed capital u/s 24b | V10: 0
B11: 7. | C11: Interest from saving Account / Deposits / Income tax refund | V11: =backE!V11 -> 30000
B12: 8. | C12: Gross Total Income [5+6+7] | W12: =W9+V11 -> 1029979
B13: 9. | C13: Deductions under Chapter VI-A
C14: (a) | D14: 80C Life insurance premia, deferred annuity, contributions to provident fund etc. | V14: =SUM(V15:V19) -> 0
D15: (i) | E15: GPF/GPF 2004 | V15: 0
D16: (ii) | E16: State Insurance | V16: 0
D17: (iii) | E17: Group Insurance Accidental | V17: 0
D18: (iv) | E18: LIC annual premium | V18: 0
C19: (b) | D19: Any other deductible total amount u/s 80C, 80CCC & 80CCD(1) | V19: 0
D20: Total deductible amount u/s 80C, 80CCC & 80CCD(1) | V20: =V19+V14 -> 0 | W20: 0
C21: (c) | D21: 80CCD(1B) Additional contribution towads NPS | V21: 0 | W21: 0
C22: (d) | D22: 80CCD(2) Employer contribution towards NPS | V22: =backE!V22 -> 0 | W22: =MIN(ROUND(W7*10%,0),V22) -> 0
C23: (e) | D23: 80D Deduction in respect of Health Insurance premia | V23: 0 | W23: 0
C24: (f) | D24: 80DD Maintenance including medical treatment of a dependent who is a person with disability | V24: 0 | W24: 0
C25: (g) | D25: 80DDB Medical treatment of specified disease | V25: 0 | W25: 0
C26: (h) | D26: 80E Interest on loan taken for higher education | V26: 0 | W26: 0
C27: (i) | D27: 80G Donations to certain funds, charitable institutions, etc. | V27: 0 | W27: 0
C28: (j) | D28: 80TTA Interest on saving bank Accounts in case of other than Resident senior citizens | V28: 0 | W28: 0
C29: (k) | D29: 80U In case of a person with disability | V29: 0 | W29: 0
B30: 10. | C30: Total Deductions under Chapter VI-A | W30: =SUM(W20:W29) -> 0
B31: 11. | C31: Total Taxable Income [8-10] | W31: =IF(ROUND(W12-W30,-1)<0,0,ROUND(W12-W30,-1)) -> 1029980
C32: Tax Calculation Table
C33: Income Slab | I33: Rate | K33: Taxable Income | O33: Tax
C34: Up To ₹ 400000 | I34: Nil | K34: =MAX(IF(W31>=400000,400000,W31),0) -> 400000 | L34: Nil | M34: =MAX(IF($F$31>=250000,250000,$F$31),0) -> 0 | N34: Nil | O34: Nil
C35: ₹ 400001 To ₹ 800000 | I35: 0.05 | K35: =IF(W31>=800000,400000,IF(W31<=400000,0,(W31-K34))) -> 400000 | L35: =ROUND(J35*K35,0) -> 0 | M35: =IF($F$31>=500000,250000,IF($F$31<=250000,0,($F$31-M34))) -> 0 | N35: =ROUND(L35*M35,0) -> 0 | O35: =ROUND(I35*K35,0) -> 20000
C36: ₹ 800001 To ₹ 1200000 | I36: 0.1 | K36: =IF(W31>=1200000,400000,IF(W31<=800000,0,(W31-K34-K35))) -> 229980 | L36: =ROUND(J36*K36,0) -> 0 | M36: =IF($F$31>=1000000,500000,IF($F$31<=500000,0,($F$31-M34-M35))) -> 0 | N36: =ROUND(L36*M36,0) -> 0 | O36: 22998
C37: ₹ 1200001 To ₹ 1600000 | I37: 0.15 | K37: =IF(W31>=1600000,400000,IF(W31<=1200000,0,(W31-K34-K35-K36))) -> 0 | O37: 0
C38: ₹ 1600001 To ₹ 2000000 | I38: 0.2 | K38: =IF(W31>=2000000,400000,IF(W31<=1600000,0,(W31-K34-K35-K36-K37))) -> 0 | O38: 0
C39: ₹ 2000001 To ₹ 2400000 | I39: 0.25 | K39: =IF(W31>=2400000,400000,IF(W31<=2000000,0,(W31-K34-K35-K36-K37-K38))) -> 0 | O39: 0
C40: Above ₹ 2400000 | I40: 0.3 | K40: =IF(W31<=2400000,0,(W31-2400000)) -> 0 | L40: =ROUND(J40*K40,0) -> 0 | M40: =IF($F$31<=1000000,0,($F$31-1000000)) -> 0 | N40: =ROUND(L40*M40,0) -> 0 | O40: 0 | S40: =W31=SUM(K34:N40) -> TRUE
B41: 12. | C41: Tax Payable on Total Income | W41: =SUM(O35:R40) -> 42998
B42: 13. | C42: Rebate u/s 87A with Marginal Relief u/s 115BAC(1A) | W42: =IF(W31>=1200000,0,MIN(60000,W41))+IF(W31<=1200000,0,MAX(W41-(W31-1200000),0)) -> 42998
B43: 14. | C43: Tax Payable after Rebate [12-13] | W43: =W41-W42 -> 0
B44: 15. | C44: Health and Education Cess | W44: =ROUND(4%*W43,0) -> 0
B45: 16. | C45: Total Tax & Cess [14+15] | W45: =W43+W44 -> 0
B46: 17. | C46: Relief u/s 89 | W46: =backE!W43 -> 0
B47: 18. | C47: Balance Tax after Relief [16-17] | W47: =W45-W46 -> 0
B48: 19. | C48: Total Taxes deducted at Sources | W48: =backE!W45 -> 10800
B49: 20. | C49: Amount Payable [18-19] | W49: =MAX(0,(W47-W48)) -> 0
B50: 21. | C50: Refund [19-18] | W50: =MAX(0,(W48-W47)) -> 10800
V52: Employee Signature

Sheet compEN
B2: Income Tax Camparison for FY 2025-26 Asessment Year 2026-27
B3: ="Emp Name : "&backE!Z2 -> Emp Name : Pramod Kumar Saini | M3: ="Emp Desig. : "&backE!Z3 -> Emp Desig. : Teacher | V3: As per Tax Old Regime▼ | W3: As per Tax New Regime▼
B4: ="Emp PAN : "&backE!Z4 -> Emp PAN : QWERTY1234U | M4: ="DDO Office : "&backE!Z5 -> DDO Office : GSSS Malutana
B5: 1. | C5: Gross Salary... (Including all allowance u/s 17... i.e. Govt. contribution towards NPS) | V5: =backE!V5 -> 1074979 | W5: =backN!V5 -> 1074979
B6: 2. | C6: HRA exemption as per eligibility u/s 10(13-A) whether living in … Rented House | V6: =backE!V6 -> 62160 | W6: 0
B7: 3. | C7: Net Salary [1-2] | V7: =V5-V6 -> 1012819 | W7: =W5-W6 -> 1074979
B8: 4. | C8: Standard Deduction u/s 16(ia) | V8: =backE!V8 -> 50000 | W8: =backN!V8 -> 75000
B9: 5. | C9: Income chargeable under the head ''Salaries'' [3-4] | V9: =V7-V8 -> 962819 | W9: =W7-W8 -> 999979
B10: 6. | C10: Interest payable on borrowed capital u/s 24b | V10: =backE!V10 -> 0 | W10: 0
B11: 7. | C11: Interest from saving Account / Deposits / Income tax refund | V11: =backE!V11 -> 30000 | W11: =V11 -> 30000
B12: 8. | C12: Gross Total Income [5+6+7] | V12: =V9+V11-V10 -> 992819 | W12: =W9+W11 -> 1029979
B13: 9. | C13: Deductions under Chapter VI-A
C14: (a) | D14: 80C Life insurance premia, deferred annuity, contributions to provident fund etc. | V14: =SUM(V15:V18) -> 81442 | W14: 0
D15: (i) | E15: GPF/GPF 2004 | V15: =backE!V15 -> 44742 | W15: 0
D16: (ii) | E16: State Insurance | V16: =backE!V16 -> 36000 | W16: 0
D17: (iii) | E17: Group Insurance Accidental | V17: =backE!V17 -> 700 | W17: 0
D18: (iv) | E18: LIC annual premium | V18: =backE!V18 -> 0 | W18: 0
C19: (b) | D19: Any other deductible total amount u/s 80C, 80CCC & 80CCD(1) | V19: =backE!V19 -> 50000 | W19: 0
D20: Total deductible amount u/s 80C, 80CCC & 80CCD(1) | V20: =backE!W20 -> 131442 | W20: 0
C21: (c) | D21: 80CCD(1B) Additional contribution towads NPS | V21: =backE!W21 -> 0 | W21: 0
C22: (d) | D22: 80CCD(2) Employer contribution towards NPS | V22: =backE!W22 -> 0 | W22: =V22 -> 0
C23: (e) | D23: 80D Deduction in respect of Health Insurance premia | V23: =backE!W23 -> 25000 | W23: 0
C24: (f) | D24: 80DD Maintenance including medical treatment of a dependent who is a person with disability | V24: =backE!W24 -> 0 | W24: 0
C25: (g) | D25: 80DDB Medical treatment of specified disease | V25: =backE!W25 -> 0 | W25: 0
C26: (h) | D26: 80E Interest on loan taken for higher education | V26: =backE!W26 -> 0 | W26: 0
C27: (j) | D27: 80G Donations to certain funds, charitable institutions, etc. | V27: =backE!W27 -> 0 | W27: 0
C28: (j) | D28: 80TTA Interest on saving bank Accounts in case of other than Resident senior citizens | V28: =backE!W28 -> 10000 | W28: 0
C29: (k) | D29: 80U In case of a person with disability | V29: =backE!W29 -> 0 | W29: 0
B30: 10. | C30: Total Deductions under Chapter VI-A | V30: =SUM(V20:V29) -> 166442 | W30: =SUM(W20:W29) -> 0
B31: 11. | C31: Total Taxable Income [8-10] | V31: =ROUND(V12-V30,-1) -> 826380 | W31: =ROUND(W12-W30,-1) -> 1029980
C32: Tax Calculation Table (Old Regime) | L32: Tax Calculation Table (New Regime)
C33: Income Slab | G33: Rate | H33: Income | J33: Tax | L33: Income Slab | P33: Rate | Q33: Income | S33: Tax | X33: =SUM(H34:I37)=V31 -> TRUE | Y33: =SUM(Q34:R40)=W31 -> TRUE
C34: Up To ₹ 250000 | G34: Nil | H34: =MAX(IF(V31>=250000,250000,V31),0) -> 250000 | J34: Nil | L34: Up To ₹ 400000 | P34: Nil | Q34: =MAX(IF(W31>=400000,400000,W31),0) -> 400000 | S34: Nil
C35: ₹ 250001 To ₹ 500000 | G35: 0.05 | H35: =IF(V31>=500000,250000,IF(V31<=250000,0,(V31-250000))) -> 250000 | J35: =ROUND(G35*H35,0) -> 12500 | L35: ₹ 400001 To ₹ 800000 | P35: 0.05 | Q35: =IF(W31>=800000,400000,IF(W31<=400000,0,(W31-Q34))) -> 400000 | S35: =ROUND(P35*Q35,0) -> 20000
C36: ₹ 500001 To ₹ 1000000 | G36: 0.2 | H36: =IF(V31>=1000000,500000,IF(V31<=500000,0,(V31-H34-H35))) -> 326380 | J36: =ROUND(G36*H36,0) -> 65276 | L36: ₹ 800001 To ₹ 1200000 | P36: 0.1 | Q36: =IF(W31>=1200000,400000,IF(W31<=800000,0,(W31-Q34-Q35))) -> 229980 | S36: 22998
C37: Above ₹ 1000000 | G37: 0.3 | H37: =IF(V31<=1000000,0,(V31-H34-H35-H36)) -> 0 | J37: =ROUND(G37*H37,0) -> 0 | L37: ₹ 1200001 To ₹ 1600000 | P37: 0.15 | Q37: =IF(W31>=1600000,400000,IF(W31<=1200000,0,(W31-Q34-Q35-Q36))) -> 0 | S37: 0
L38: ₹ 1600001 To ₹ 2000000 | P38: 0.2 | Q38: =IF(W31>=2000000,400000,IF(W31<=1600000,0,(W31-Q34-Q35-Q36-Q37))) -> 0 | S38: 0
L39: ₹ 2000001 To ₹ 2400000 | P39: 0.25 | Q39: =IF(W31>=2400000,400000,IF(W31<=2000000,0,(W31-Q34-Q35-Q36-Q37-Q38))) -> 0 | S39: 0
L40: Above ₹ 2400000 | P40: 0.3 | Q40: =IF(W31<=2400000,0,(W31-2400000)) -> 0 | S40: 0
B41: 12. | C41: Tax Payable on Total Income | V41: =SUM(J35:K37) -> 77776 | W41: =SUM(S35:T40) -> 42998
B42: 13. | C42: Rebate u/s 87A with Marginal Relief u/s 115BAC(1A) | V42: =IF(V31>500000,0,MIN(12500,V41)) -> 0 | W42: =IF(W31>=1200000,0,MIN(60000,W41))+IF(W31<=1200000,0,MAX(W41-(W31-1200000),0)) -> 42998
B43: 14. | C43: Tax Payable after Rebate [12-13] | V43: =V41-V42 -> 77776 | W43: =W41-W42 -> 0
B44: 15. | C44: Health and Education Cess | V44: =ROUND(4%*V43,0) -> 3111 | W44: =ROUND(4%*W43,0) -> 0
B45: 16. | C45: Total Tax & Cess [14+15] | V45: =V43+V44 -> 80887 | W45: =W43+W44 -> 0
B46: 17. | C46: Relief u/s 89 | V46: =backE!W43 -> 0 | W46: =V46 -> 0
B47: 18. | C47: Balance Tax after Relief [16-17] | V47: =V45-V46 -> 80887 | W47: =W45-W46 -> 0
B48: 19. | C48: Total Taxes deducted at Sources | V48: =backE!W45 -> 10800 | W48: =V48 -> 10800
B49: 20. | C49: Amount Payable [18-19] | V49: =MAX(0,(V47-V48)) -> 70087 | W49: =MAX(0,(W47-W48)) -> 0
B50: 21. | C50: Refund [19-18] | V50: =MAX(0,(V48-V47)) -> 0 | W50: =MAX(0,(W48-W47)) -> 10800
V52: Employee Signature
